[Event "*** SCC Grand Prix: Titled Tuesday Blitz"]
[Site "Chess.com"]
[Date "2020.08.11"]
[Round "1"]
[White "Barmen_EV"]
[Black "Gabrielian_Artur"]
[Result "0-1"]
[WhiteElo "2397"]
[BlackElo "2793"]
[TimeControl "180+1"]
[EndTime "10:07:12 PDT"]
[Termination "Gabrielian_Artur won on time"]

1. d4 {[%clk 0:02:59.7]} 1... Nf6 {[%clk 0:02:59.6]} 2. c4 {[%clk 0:03:00.2]}
2... c5 {[%clk 0:02:59.5]} 3. d5 {[%clk 0:03:00.3]} 3... e6 {[%clk 0:02:59.6]}
4. Nc3 {[%clk 0:03:00.8]} 4... exd5 {[%clk 0:02:59.6]} 5. cxd5 {[%clk
0:03:01.7]} 5... d6 {[%clk 0:02:59.8]} 6. e4 {[%clk 0:03:02.6]} 6... g6 {[%clk
0:02:59.9]} 7. f4 {[%clk 0:03:02.4]} 7... Bg7 {[%clk 0:02:59.8]} 8. Bb5+ {[%clk
0:02:59.8]} 8... Nfd7 {[%clk 0:03:00.2]} 9. Be2 {[%clk 0:02:59.7]} 9... O-O
{[%clk 0:02:59.4]} 10. Nf3 {[%clk 0:03:00.6]} 10... Re8 {[%clk 0:02:56]} 11. O-O
{[%clk 0:03:00.4]} 11... Na6 {[%clk 0:02:37.8]} 12. Kh1 {[%clk 0:02:53.1]} 12...
Nc7 {[%clk 0:02:36.2]} 13. f5 {[%clk 0:02:52.7]} 13... Ne5 {[%clk 0:02:30.1]}
14. Bg5 {[%clk 0:02:47.5]} 14... f6 {[%clk 0:02:11.2]} 15. Nxe5 {[%clk
0:02:26.1]} 15... fxg5 {[%clk 0:01:56]} 16. Ng4 {[%clk 0:02:26]} 16... Rf8
{[%clk 0:01:25.9]} 17. fxg6 {[%clk 0:02:09.2]} 17... Rxf1+ {[%clk 0:01:16.1]}
18. Qxf1 {[%clk 0:02:08.3]} 18... hxg6 {[%clk 0:01:16.3]} 19. Rd1 {[%clk
0:01:45.2]} 19... Bxg4 {[%clk 0:01:15]} 20. Bxg4 {[%clk 0:01:44.9]} 20... Qe7
{[%clk 0:01:15.4]} 21. Qd3 {[%clk 0:01:40.5]} 21... Rf8 {[%clk 0:01:13.9]} 22.
e5 {[%clk 0:01:27.8]} 22... Qxe5 {[%clk 0:00:53.5]} 23. Qxg6 {[%clk 0:01:27.2]}
23... Rf6 {[%clk 0:00:48.2]} 24. Qd3 {[%clk 0:01:21]} 24... Rf4 {[%clk
0:00:47.9]} 25. Qh3 {[%clk 0:01:07.6]} 25... Ne8 {[%clk 0:00:38.3]} 26. Be6+
{[%clk 0:01:05.1]} 26... Kf8 {[%clk 0:00:38.1]} 27. g3 {[%clk 0:00:41.4]} 27...
Rf2 {[%clk 0:00:35.9]} 28. Qh7 {[%clk 0:00:20.6]} 28... Qe3 {[%clk 0:00:26.2]}
29. Qh5 {[%clk 0:00:07.4]} 29... Ke7 {[%clk 0:00:18.6]} 30. Qg4 {[%clk
0:00:02.8]} 30... Nf6 {[%clk 0:00:18.1]} 31. Qh3 {[%clk 0:00:02]} 31... Qf3+
{[%clk 0:00:15.7]} 32. Kg1 {[%clk 0:00:02.2]} 32... g4 {[%clk 0:00:16.3]} 0-1

[Event "*** SCC Grand Prix: Titled Tuesday Blitz"]
[Site "Chess.com"]
[Date "2020.08.11"]
[Round "1"]
[White "penguingm1"]
[Black "maximnovik"]
[Result "1-0"]
[WhiteElo "3001"]
[BlackElo "2448"]
[TimeControl "180+1"]
[EndTime "10:07:14 PDT"]
[Termination "penguingm1 won by resignation"]

1. d4 {[%clk 0:02:56.7]} 1... Nf6 {[%clk 0:02:54.3]} 2. c4 {[%clk 0:02:56.3]}
2... g6 {[%clk 0:02:54.7]} 3. f3 {[%clk 0:02:56.2]} 3... c5 {[%clk 0:02:51.9]}
4. d5 {[%clk 0:02:56.1]} 4... e6 {[%clk 0:02:51]} 5. e4 {[%clk 0:02:56.1]} 5...
exd5 {[%clk 0:02:50.8]} 6. cxd5 {[%clk 0:02:57]} 6... d6 {[%clk 0:02:47.7]} 7.
Nc3 {[%clk 0:02:57.5]} 7... Bg7 {[%clk 0:02:48]} 8. Nge2 {[%clk 0:02:56.6]} 8...
h5 {[%clk 0:02:46.5]} 9. Bg5 {[%clk 0:02:51.6]} 9... a6 {[%clk 0:02:46.2]} 10.
a4 {[%clk 0:02:51.7]} 10... Qc7 {[%clk 0:02:45.5]} 11. Qd2 {[%clk 0:02:47]}
11... O-O {[%clk 0:02:41.6]} 12. Ng3 {[%clk 0:02:46.7]} 12... Nh7 {[%clk
0:02:40.6]} 13. Bh6 {[%clk 0:02:45.8]} 13... h4 {[%clk 0:02:38.1]} 14. Bxg7
{[%clk 0:02:45.9]} 14... Kxg7 {[%clk 0:02:36.9]} 15. Bc4 {[%clk 0:02:27.6]}
15... Qe7 {[%clk 0:02:16.1]} 16. Nge2 {[%clk 0:02:15.9]} 16... Nd7 {[%clk
0:02:02.8]} 17. f4 {[%clk 0:02:00.8]} 17... Nhf6 {[%clk 0:01:43.1]} 18. e5
{[%clk 0:01:49.1]} 18... dxe5 {[%clk 0:01:39.7]} 19. d6 {[%clk 0:01:48.6]} 19...
Qd8 {[%clk 0:01:38.8]} 20. O-O {[%clk 0:01:39.1]} 20... e4 {[%clk 0:01:34.7]}
21. Nd1 {[%clk 0:01:13.9]} 21... Nb6 {[%clk 0:01:29.5]} 22. Ne3 {[%clk
0:01:09.1]} 22... Nxc4 {[%clk 0:01:21.6]} 23. Nxc4 {[%clk 0:01:09.3]} 23... Be6
{[%clk 0:01:22.1]} 24. Ne3 {[%clk 0:01:06.1]} 24... Qd7 {[%clk 0:01:19.3]} 25.
f5 {[%clk 0:01:03.4]} 25... Bb3 {[%clk 0:01:04.2]} 26. Rf2 {[%clk 0:00:40.7]}
26... Rad8 {[%clk 0:00:54]} 27. Qc3 {[%clk 0:00:38.4]} 27... Qxd6 {[%clk
0:00:31.1]} 28. Qxb3 {[%clk 0:00:32.4]} 28... Qd3 {[%clk 0:00:30.8]} 29. Qc3
{[%clk 0:00:31.3]} 29... b5 {[%clk 0:00:25.1]} 30. axb5 {[%clk 0:00:30.5]} 30...
axb5 {[%clk 0:00:25]} 31. fxg6 {[%clk 0:00:28.9]} 31... fxg6 {[%clk 0:00:24]}
32. Qxc5 {[%clk 0:00:27.4]} 32... Rf7 {[%clk 0:00:20.2]} 33. Qg5 {[%clk
0:00:24.1]} 33... Rd5 {[%clk 0:00:11.6]} 34. Nxd5 {[%clk 0:00:21.2]} 34... Qxd5
{[%clk 0:00:11.7]} 35. Qxd5 {[%clk 0:00:20]} 35... Nxd5 {[%clk 0:00:11.5]} 36.
Rxf7+ {[%clk 0:00:20.7]} 36... Kxf7 {[%clk 0:00:11.7]} 37. Ra6 {[%clk 0:00:21]}
37... Ke7 {[%clk 0:00:10.2]} 38. Rxg6 {[%clk 0:00:20.7]} 1-0

[Event "*** SCC Grand Prix: Titled Tuesday Blitz"]
[Site "Chess.com"]
[Date "2020.08.11"]
[Round "1"]
[White "pavelalexandru07"]
[Black "Artyom_ChessMate"]
[Result "0-1"]
[WhiteElo "2196"]
[BlackElo "2556"]
[TimeControl "180+1"]
[EndTime "10:07:14 PDT"]
[Termination "Artyom_ChessMate won by resignation"]

1. e4 {[%clk 0:03:00.9]} 1... e5 {[%clk 0:02:58]} 2. Nf3 {[%clk 0:03:00.5]} 2...
Nc6 {[%clk 0:02:52.8]} 3. Bb5 {[%clk 0:02:59.7]} 3... a6 {[%clk 0:02:53.2]} 4.
Ba4 {[%clk 0:02:59.9]} 4... Nf6 {[%clk 0:02:53.5]} 5. O-O {[%clk 0:02:59.6]}
5... b5 {[%clk 0:02:52.7]} 6. Bb3 {[%clk 0:02:59.6]} 6... Be7 {[%clk 0:02:52.5]}
7. Re1 {[%clk 0:02:59.7]} 7... O-O {[%clk 0:02:52.4]} 8. c3 {[%clk 0:03:00]}
8... d6 {[%clk 0:02:52.6]} 9. h3 {[%clk 0:02:59.4]} 9... Bb7 {[%clk 0:02:52.7]}
10. d4 {[%clk 0:02:58.8]} 10... Re8 {[%clk 0:02:48]} 11. Nbd2 {[%clk 0:02:56.2]}
11... Bf8 {[%clk 0:02:47]} 12. a4 {[%clk 0:02:56.1]} 12... h6 {[%clk 0:02:19.5]}
13. Bc2 {[%clk 0:02:49.5]} 13... exd4 {[%clk 0:02:18.5]} 14. cxd4 {[%clk
0:02:49.3]} 14... Nb4 {[%clk 0:02:18.8]} 15. Bb1 {[%clk 0:02:49.9]} 15... c5
{[%clk 0:02:19.3]} 16. d5 {[%clk 0:02:10.8]} 16... Nd7 {[%clk 0:02:17.5]} 17. b3
{[%clk 0:02:07.4]} 17... Qf6 {[%clk 0:02:01.3]} 18. Ra3 {[%clk 0:02:07]} 18...
g6 {[%clk 0:01:55.2]} 19. Nf1 {[%clk 0:01:52.5]} 19... Bg7 {[%clk 0:01:53.7]}
20. Ne3 {[%clk 0:01:48.1]} 20... Qd8 {[%clk 0:01:29.3]} 21. h4 {[%clk
0:01:40.8]} 21... h5 {[%clk 0:01:27.1]} 22. Nc2 {[%clk 0:01:15.7]} 22... Nxc2
{[%clk 0:01:19.1]} 23. Bxc2 {[%clk 0:01:16.6]} 23... c4 {[%clk 0:01:13.7]} 24.
bxc4 {[%clk 0:01:13.6]} 24... bxc4 {[%clk 0:01:14.6]} 25. Bg5 {[%clk 0:01:08.5]}
25... Qc7 {[%clk 0:01:13.1]} 26. Qd2 {[%clk 0:01:00]} 26... Rac8 {[%clk
0:01:03.8]} 27. Bh6 {[%clk 0:00:59.3]} 27... Bh8 {[%clk 0:01:01.8]} 28. Ng5
{[%clk 0:00:55.9]} 28... c3 {[%clk 0:00:57.8]} 29. Qe2 {[%clk 0:00:44.2]} 29...
Ne5 {[%clk 0:00:57.5]} 30. Nf3 {[%clk 0:00:40.8]} 30... Ng4 {[%clk 0:00:44.7]}
31. Bf4 {[%clk 0:00:38.5]} 31... Qc5 {[%clk 0:00:34.3]} 32. Rb3 {[%clk
0:00:37.2]} 32... Bxd5 {[%clk 0:00:33.8]} 33. Rbb1 {[%clk 0:00:33.6]} 33... Bc4
{[%clk 0:00:33.9]} 34. Bd3 {[%clk 0:00:28.5]} 34... Bxd3 {[%clk 0:00:33.1]} 35.
Qxd3 {[%clk 0:00:29.4]} 35... Nxf2 {[%clk 0:00:31.9]} 36. Qe3 {[%clk 0:00:22]}
36... Qxe3 {[%clk 0:00:30.6]} 37. Bxe3 {[%clk 0:00:22]} 37... Nxe4 {[%clk
0:00:29.8]} 38. Bd4 {[%clk 0:00:20.9]} 38... Nd2 {[%clk 0:00:22.1]} 39. Nxd2
{[%clk 0:00:20.4]} 39... Bxd4+ {[%clk 0:00:21.1]} 40. Kf1 {[%clk 0:00:20.8]}
40... cxd2 {[%clk 0:00:22]} 41. Rxe8+ {[%clk 0:00:20.6]} 41... Rxe8 {[%clk
0:00:22.8]} 42. Rd1 {[%clk 0:00:21.5]} 42... Bc3 {[%clk 0:00:23]} 43. Kf2 {[%clk
0:00:21.2]} 43... Re1 {[%clk 0:00:23.4]} 0-1

[Event "*** SCC Grand Prix: Titled Tuesday Blitz"]
[Site "Chess.com"]
[Date "2020.08.11"]
[Round "1"]
[White "czasnaszachy"]
[Black "chess94cu"]
[Result "0-1"]
[WhiteElo "2226"]
[BlackElo "2587"]
[TimeControl "180+1"]
[EndTime "10:07:17 PDT"]
[Termination "chess94cu won by resignation"]

1. d4 {[%clk 0:02:59.3]} 1... Nf6 {[%clk 0:02:59.5]} 2. c4 {[%clk 0:02:58.9]}
2... e6 {[%clk 0:02:59.6]} 3. Nc3 {[%clk 0:02:58.1]} 3... Bb4 {[%clk 0:02:59.6]}
4. e3 {[%clk 0:02:57.8]} 4... b6 {[%clk 0:02:59]} 5. Ne2 {[%clk 0:02:57.7]} 5...
Bb7 {[%clk 0:02:56]} 6. a3 {[%clk 0:02:57.7]} 6... Be7 {[%clk 0:02:56]} 7. Nf4
{[%clk 0:02:54.1]} 7... O-O {[%clk 0:02:50.2]} 8. Bd3 {[%clk 0:02:51.2]} 8... d5
{[%clk 0:02:43.1]} 9. cxd5 {[%clk 0:02:40.6]} 9... exd5 {[%clk 0:02:42]} 10. O-O
{[%clk 0:02:40.2]} 10... c5 {[%clk 0:02:41.5]} 11. dxc5 {[%clk 0:02:13.9]} 11...
bxc5 {[%clk 0:02:39.9]} 12. Be2 {[%clk 0:01:52.2]} 12... Bd6 {[%clk 0:02:17.3]}
13. Nfxd5 {[%clk 0:01:39.9]} 13... Nxd5 {[%clk 0:02:13.5]} 14. Nxd5 {[%clk
0:01:39.8]} 14... Bxd5 {[%clk 0:02:13.1]} 15. h3 {[%clk 0:01:08.2]} 15... Nc6
{[%clk 0:01:57.1]} 16. Bd2 {[%clk 0:01:08.1]} 16... Be5 {[%clk 0:01:55.3]} 17.
Qc2 {[%clk 0:01:07.3]} 17... Qg5 {[%clk 0:01:43.4]} 18. e4 {[%clk 0:00:58.6]}
18... Bxe4 {[%clk 0:01:23.7]} 19. Qxe4 {[%clk 0:00:47.4]} 19... Qxd2 {[%clk
0:01:22.1]} 20. Rad1 {[%clk 0:00:45.2]} 20... Qf4 {[%clk 0:01:20.2]} 21. Qxf4
{[%clk 0:00:39.5]} 21... Bxf4 {[%clk 0:01:21.1]} 22. Bf3 {[%clk 0:00:40]} 22...
Rac8 {[%clk 0:01:18.4]} 23. Rd5 {[%clk 0:00:31.9]} 23... Nd4 {[%clk 0:01:17]}
24. Bg4 {[%clk 0:00:28.6]} 24... f5 {[%clk 0:01:14.7]} 25. Bd1 {[%clk
0:00:25.9]} 25... Rfd8 {[%clk 0:01:13.3]} 26. Rxd8+ {[%clk 0:00:24.8]} 26...
Rxd8 {[%clk 0:01:14.2]} 27. Re1 {[%clk 0:00:25.3]} 27... Kf7 {[%clk 0:01:08.4]}
28. g3 {[%clk 0:00:22.3]} 28... Bg5 {[%clk 0:01:07.2]} 29. h4 {[%clk 0:00:22.2]}
29... Bf6 {[%clk 0:01:06.4]} 30. Kg2 {[%clk 0:00:22.7]} 30... Rb8 {[%clk
0:01:03.5]} 31. Ba4 {[%clk 0:00:14.8]} 31... Rxb2 {[%clk 0:00:50.5]} 32. Be8+
{[%clk 0:00:13.4]} 32... Kf8 {[%clk 0:00:50.4]} 33. Bh5 {[%clk 0:00:13.1]} 33...
g6 {[%clk 0:00:49.8]} 34. Bd1 {[%clk 0:00:10.7]} 34... c4 {[%clk 0:00:45.4]} 35.
Ba4 {[%clk 0:00:10.3]} 35... c3 {[%clk 0:00:33.7]} 36. Re8+ {[%clk 0:00:09.9]}
36... Kf7 {[%clk 0:00:34.1]} 37. Rc8 {[%clk 0:00:09.4]} 37... Ne6 {[%clk
0:00:30]} 38. Be8+ {[%clk 0:00:05.9]} 38... Ke7 {[%clk 0:00:27.9]} 39. Ba4
{[%clk 0:00:04.4]} 39... Bd4 {[%clk 0:00:27.1]} 0-1

[Event "*** SCC Grand Prix: Titled Tuesday Blitz"]
[Site "Chess.com"]
[Date "2020.08.11"]
[Round "1"]
[White "diablanni"]
[Black "Fighter008"]
[Result "0-1"]
[WhiteElo "2332"]
[BlackElo "2675"]
[TimeControl "180+1"]
[EndTime "10:07:19 PDT"]
[Termination "Fighter008 won on time"]

1. e4 {[%clk 0:03:00]} 1... c5 {[%clk 0:02:59.3]} 2. Nf3 {[%clk 0:02:59.1]} 2...
e6 {[%clk 0:02:59]} 3. d4 {[%clk 0:02:55]} 3... cxd4 {[%clk 0:02:58.9]} 4. Nxd4
{[%clk 0:02:55.6]} 4... a6 {[%clk 0:02:59.4]} 5. c4 {[%clk 0:02:55.7]} 5... Nf6
{[%clk 0:02:58.5]} 6. Nc3 {[%clk 0:02:55.8]} 6... Qc7 {[%clk 0:02:58.9]} 7. a3
{[%clk 0:02:54.6]} 7... b6 {[%clk 0:02:58.5]} 8. Be3 {[%clk 0:02:50.5]} 8... Bb7
{[%clk 0:02:58.4]} 9. f3 {[%clk 0:02:50.5]} 9... Be7 {[%clk 0:02:56.5]} 10. Be2
{[%clk 0:02:50.1]} 10... d6 {[%clk 0:02:54.1]} 11. O-O {[%clk 0:02:47.7]} 11...
Nbd7 {[%clk 0:02:54]} 12. Rc1 {[%clk 0:02:47.1]} 12... Rc8 {[%clk 0:02:53.8]}
13. Qd2 {[%clk 0:02:47.4]} 13... Qb8 {[%clk 0:02:53.8]} 14. b4 {[%clk
0:02:47.2]} 14... Bd8 {[%clk 0:02:53.8]} 15. Kh1 {[%clk 0:02:46.9]} 15... Bc7
{[%clk 0:02:53.9]} 16. Bg1 {[%clk 0:02:46.7]} 16... h5 {[%clk 0:02:54.3]} 17. h4
{[%clk 0:02:38.3]} 17... Ne5 {[%clk 0:02:49]} 18. Rc2 {[%clk 0:02:34.2]} 18...
Ng6 {[%clk 0:02:47.9]} 19. Bf2 {[%clk 0:02:30.8]} 19... O-O {[%clk 0:02:46.4]}
20. Rb1 {[%clk 0:02:26.1]} 20... Rfd8 {[%clk 0:02:45.4]} 21. Qc1 {[%clk
0:02:20.5]} 21... d5 {[%clk 0:02:39.4]} 22. exd5 {[%clk 0:02:19.1]} 22... exd5
{[%clk 0:02:34.4]} 23. c5 {[%clk 0:02:18.9]} 23... Bf4 {[%clk 0:02:31.4]} 24.
Qg1 {[%clk 0:01:48.1]} 24... Bg3 {[%clk 0:02:22.7]} 25. c6 {[%clk 0:01:38.2]}
25... Bxc6 {[%clk 0:02:18.7]} 26. Bxa6 {[%clk 0:01:34.5]} 26... Bxf2 {[%clk
0:02:07.3]} 27. Qxf2 {[%clk 0:01:34.2]} 27... Bb7 {[%clk 0:02:07.4]} 28. Bxb7
{[%clk 0:01:32.8]} 28... Qxb7 {[%clk 0:02:08.3]} 29. Rbc1 {[%clk 0:01:26.9]}
29... Rc4 {[%clk 0:01:57.1]} 30. Nxd5 {[%clk 0:01:25.2]} 30... Rxd4 {[%clk
0:01:46.7]} 31. Qxd4 {[%clk 0:01:20.2]} 31... Rxd5 {[%clk 0:01:42.8]} 32. Qf2
{[%clk 0:01:10.9]} 32... Qd7 {[%clk 0:01:33.6]} 33. Qxb6 {[%clk 0:01:04.6]}
33... Nxh4 {[%clk 0:01:27.7]} 34. Qb8+ {[%clk 0:01:03.2]} 34... Kh7 {[%clk
0:01:25]} 35. Qc7 {[%clk 0:00:52.3]} 35... Qe6 {[%clk 0:01:14]} 36. a4 {[%clk
0:00:49.2]} 36... Nf5 {[%clk 0:01:10.9]} 37. b5 {[%clk 0:00:42.5]} 37... h4
{[%clk 0:00:52.1]} 38. b6 {[%clk 0:00:20.9]} 38... h3 {[%clk 0:00:49.4]} 39. b7
{[%clk 0:00:19.1]} 39... Nh4 {[%clk 0:00:42.6]} 40. b8=Q {[%clk 0:00:10.8]}
40... hxg2+ {[%clk 0:00:42.5]} 41. Kh2 {[%clk 0:00:09.9]} 41... Rh5 {[%clk
0:00:41.4]} 0-1

[Event "*** SCC Grand Prix: Titled Tuesday Blitz"]
[Site "Chess.com"]
[Date "2020.08.11"]
[Round "1"]
[White "stolencandy13"]
[Black "David_Paravyan"]
[Result "1/2-1/2"]
[WhiteElo "2437"]
[BlackElo "2878"]
[TimeControl "180+1"]
[EndTime "10:07:20 PDT"]
[Termination "Game drawn by repetition"]

1. e4 {[%clk 0:02:57.5]} 1... c5 {[%clk 0:02:58.3]} 2. Nf3 {[%clk 0:02:57]} 2...
d6 {[%clk 0:02:59]} 3. d4 {[%clk 0:02:57.4]} 3... cxd4 {[%clk 0:02:59.9]} 4.
Nxd4 {[%clk 0:02:58.1]} 4... Nf6 {[%clk 0:03:00.6]} 5. Nc3 {[%clk 0:02:58.3]}
5... g6 {[%clk 0:03:01.2]} 6. Be3 {[%clk 0:02:57.8]} 6... Bg7 {[%clk 0:03:01.7]}
7. f3 {[%clk 0:02:58.4]} 7... O-O {[%clk 0:03:02.2]} 8. Qd2 {[%clk 0:02:59]}
8... Nc6 {[%clk 0:03:02.7]} 9. O-O-O {[%clk 0:02:59.6]} 9... d5 {[%clk
0:03:02.6]} 10. Qe1 {[%clk 0:02:59.9]} 10... e5 {[%clk 0:03:02.2]} 11. Nxc6
{[%clk 0:02:59.2]} 11... bxc6 {[%clk 0:03:03.1]} 12. exd5 {[%clk 0:02:59.4]}
12... Nxd5 {[%clk 0:03:04]} 13. Bc4 {[%clk 0:02:58.8]} 13... Be6 {[%clk
0:03:03.1]} 14. Ne4 {[%clk 0:02:58.9]} 14... Qc7 {[%clk 0:02:23.5]} 15. Bc5
{[%clk 0:02:55.8]} 15... Rfd8 {[%clk 0:02:21.6]} 16. Qh4 {[%clk 0:02:42.6]}
16... Qa5 {[%clk 0:01:54.7]} 17. Ba3 {[%clk 0:02:25.3]} 17... Nf4 {[%clk
0:01:05.8]} 18. Ng5 {[%clk 0:02:03.8]} 18... h5 {[%clk 0:01:02.1]} 19. Nxe6
{[%clk 0:02:00.4]} 19... Nxe6 {[%clk 0:00:59.4]} 20. Bxe6 {[%clk 0:01:57.8]}
20... fxe6 {[%clk 0:01:00.3]} 21. Qe4 {[%clk 0:01:52.2]} 21... Kh7 {[%clk
0:00:58.8]} 22. Kb1 {[%clk 0:01:43.6]} 22... Rd5 {[%clk 0:00:58.5]} 23. g4
{[%clk 0:01:19.9]} 23... Rb8 {[%clk 0:00:56.2]} 24. Be7 {[%clk 0:00:32.6]} 24...
h4 {[%clk 0:00:45.9]} 25. b3 {[%clk 0:00:26.9]} 25... h3 {[%clk 0:00:42.9]} 26.
g5 {[%clk 0:00:25.6]} 26... Rb7 {[%clk 0:00:28.1]} 27. Qh4+ {[%clk 0:00:23.9]}
27... Kg8 {[%clk 0:00:28]} 28. Bf6 {[%clk 0:00:24.2]} 28... Rbd7 {[%clk
0:00:28.1]} 29. Rxd5 {[%clk 0:00:21.9]} 29... Qxd5 {[%clk 0:00:21.2]} 30. Qxh3
{[%clk 0:00:22]} 30... e4 {[%clk 0:00:21.7]} 31. fxe4 {[%clk 0:00:20.6]} 31...
Qxe4 {[%clk 0:00:22.6]} 32. Rc1 {[%clk 0:00:17.8]} 32... Rd2 {[%clk 0:00:19.9]}
33. Bxg7 {[%clk 0:00:16.6]} 33... Kxg7 {[%clk 0:00:19.7]} 34. Qc3+ {[%clk
0:00:16.4]} 34... Rd4 {[%clk 0:00:16.4]} 35. Rd1 {[%clk 0:00:15.4]} 35... e5
{[%clk 0:00:11.6]} 36. Rxd4 {[%clk 0:00:14.6]} 36... exd4 {[%clk 0:00:12.5]} 37.
Qc5 {[%clk 0:00:13]} 37... a6 {[%clk 0:00:11.7]} 38. Qd6 {[%clk 0:00:11]} 38...
Qe1+ {[%clk 0:00:10.1]} 39. Kb2 {[%clk 0:00:11]} 39... Qc3+ {[%clk 0:00:10.7]}
40. Kb1 {[%clk 0:00:11.4]} 40... Qe1+ {[%clk 0:00:11.2]} 41. Kb2 {[%clk
0:00:11.9]} 41... Qc3+ {[%clk 0:00:11.8]} 42. Kb1 {[%clk 0:00:12.4]} 42... Qe1+
{[%clk 0:00:12.3]} 1/2-1/2

[Event "*** SCC Grand Prix: Titled Tuesday Blitz"]
[Site "Chess.com"]
[Date "2020.08.11"]
[Round "1"]
[White "gusmaster2262"]
[Black "ChessAurochs"]
[Result "1-0"]
[WhiteElo "2220"]
[BlackElo "2544"]
[TimeControl "180+1"]
[EndTime "10:07:20 PDT"]
[Termination "gusmaster2262 won by resignation"]

1. c4 {[%clk 0:03:00.5]} 1... e5 {[%clk 0:02:52.5]} 2. Nc3 {[%clk 0:03:00.3]}
2... Nf6 {[%clk 0:02:52.1]} 3. g3 {[%clk 0:02:52.8]} 3... Bb4 {[%clk 0:02:51.6]}
4. Bg2 {[%clk 0:02:51.4]} 4... O-O {[%clk 0:02:51]} 5. Nf3 {[%clk 0:02:50.9]}
5... Re8 {[%clk 0:02:50.7]} 6. O-O {[%clk 0:02:49.5]} 6... Bxc3 {[%clk 0:02:46]}
7. bxc3 {[%clk 0:02:46.6]} 7... e4 {[%clk 0:02:46.2]} 8. Nd4 {[%clk 0:02:46.3]}
8... b6 {[%clk 0:02:44.8]} 9. d3 {[%clk 0:02:40.9]} 9... Bb7 {[%clk 0:02:44.5]}
10. Rb1 {[%clk 0:02:28.3]} 10... Na6 {[%clk 0:02:40.1]} 11. Bg5 {[%clk
0:02:11.1]} 11... Nc5 {[%clk 0:02:37.1]} 12. Nb3 {[%clk 0:02:02.7]} 12... d6
{[%clk 0:02:21.5]} 13. d4 {[%clk 0:01:51.9]} 13... Ncd7 {[%clk 0:02:02.6]} 14.
c5 {[%clk 0:01:45.4]} 14... h6 {[%clk 0:01:58.2]} 15. Bd2 {[%clk 0:01:31.3]}
15... Ba6 {[%clk 0:01:51.3]} 16. c6 {[%clk 0:01:23.6]} 16... Nb8 {[%clk
0:01:34.7]} 17. Qc2 {[%clk 0:01:14.8]} 17... Nxc6 {[%clk 0:01:32.9]} 18. c4
{[%clk 0:01:12]} 18... Ne7 {[%clk 0:01:21.2]} 19. f3 {[%clk 0:01:08.3]} 19...
exf3 {[%clk 0:01:01.4]} 20. Bxf3 {[%clk 0:01:07.2]} 20... Rb8 {[%clk 0:01:00.2]}
21. e4 {[%clk 0:01:06.8]} 21... Ng6 {[%clk 0:00:58.3]} 22. Rbe1 {[%clk 0:01:00]}
22... Qd7 {[%clk 0:00:55.1]} 23. Bg2 {[%clk 0:00:58.6]} 23... Qa4 {[%clk
0:00:51.2]} 24. Bxh6 {[%clk 0:00:51.9]} 24... Qxc4 {[%clk 0:00:51]} 25. Qd2
{[%clk 0:00:42.2]} 25... Bb7 {[%clk 0:00:31]} 26. Rxf6 {[%clk 0:00:35.9]} 26...
gxf6 {[%clk 0:00:29.4]} 27. h4 {[%clk 0:00:35.6]} 27... d5 {[%clk 0:00:21.4]}
28. h5 {[%clk 0:00:33.6]} 28... Nf8 {[%clk 0:00:20.3]} 29. Qf4 {[%clk
0:00:30.7]} 29... Ne6 {[%clk 0:00:18.8]} 30. Qg4+ {[%clk 0:00:30.6]} 30... Kh7
{[%clk 0:00:19.2]} 31. Bd2 {[%clk 0:00:26.7]} 31... dxe4 {[%clk 0:00:14.9]} 32.
Qf5+ {[%clk 0:00:23.4]} 32... Kg7 {[%clk 0:00:13.9]} 33. Rf1 {[%clk 0:00:22.5]}
33... Qxf1+ {[%clk 0:00:05.7]} 34. Bxf1 {[%clk 0:00:21.2]} 34... Rbd8 {[%clk
0:00:05.6]} 35. h6+ {[%clk 0:00:21]} 35... Kf8 {[%clk 0:00:04.3]} 36. Qxf6
{[%clk 0:00:20.6]} 36... Bd5 {[%clk 0:00:03.4]} 37. h7 {[%clk 0:00:20.2]} 1-0

[Event "*** SCC Grand Prix: Titled Tuesday Blitz"]
[Site "Chess.com"]
[Date "2020.08.11"]
[Round "1"]
[White "c_r_e_e_p_e_r"]
[Black "EugeneRougon"]
[Result "0-1"]
[WhiteElo "2372"]
[BlackElo "2740"]
[TimeControl "180+1"]
[EndTime "10:07:23 PDT"]
[Termination "EugeneRougon won by resignation"]

1. e4 {[%clk 0:03:00.9]} 1... e5 {[%clk 0:02:59]} 2. Nf3 {[%clk 0:03:00.6]} 2...
Nc6 {[%clk 0:02:59.1]} 3. Bb5 {[%clk 0:03:00.9]} 3... a6 {[%clk 0:02:59]} 4. Ba4
{[%clk 0:03:01.6]} 4... d6 {[%clk 0:02:59.2]} 5. d4 {[%clk 0:03:01.4]} 5... b5
{[%clk 0:02:47.9]} 6. Bb3 {[%clk 0:03:01.5]} 6... Nxd4 {[%clk 0:02:45.8]} 7.
Nxd4 {[%clk 0:03:01.1]} 7... exd4 {[%clk 0:02:46.7]} 8. Qxd4 {[%clk 0:02:58.2]}
8... Nf6 {[%clk 0:02:44.6]} 9. Bd5 {[%clk 0:02:32.5]} 9... Rb8 {[%clk
0:02:27.3]} 10. O-O {[%clk 0:02:30.8]} 10... Be7 {[%clk 0:02:21.7]} 11. Bc6+
{[%clk 0:02:22.6]} 11... Bd7 {[%clk 0:02:21.5]} 12. Bxd7+ {[%clk 0:02:21.3]}
12... Qxd7 {[%clk 0:02:22.4]} 13. Nc3 {[%clk 0:02:20.3]} 13... O-O {[%clk
0:02:20.4]} 14. Nd5 {[%clk 0:02:17.3]} 14... Nxd5 {[%clk 0:02:15.5]} 15. exd5
{[%clk 0:02:18.2]} 15... Bf6 {[%clk 0:02:14.2]} 16. Qd3 {[%clk 0:02:17.5]} 16...
Rfe8 {[%clk 0:02:05.3]} 17. c3 {[%clk 0:02:16.5]} 17... Qg4 {[%clk 0:01:37.6]}
18. f3 {[%clk 0:02:10.3]} 18... Qc4 {[%clk 0:01:35.9]} 19. Qd1 {[%clk
0:01:58.4]} 19... Re5 {[%clk 0:01:33.7]} 20. Re1 {[%clk 0:01:47.4]} 20... Rbe8
{[%clk 0:01:17.7]} 21. Bd2 {[%clk 0:01:32.3]} 21... Qxd5 {[%clk 0:01:11.3]} 22.
Qc2 {[%clk 0:01:27]} 22... Qc5+ {[%clk 0:01:07]} 23. Kf1 {[%clk 0:01:17.4]}
23... Qc4+ {[%clk 0:01:01.4]} 24. Kg1 {[%clk 0:01:17.4]} 24... Re2 {[%clk
0:00:52.9]} 25. Qf5 {[%clk 0:01:07.1]} 25... R8e6 {[%clk 0:00:26.4]} 26. b3
{[%clk 0:00:21.6]} 26... Qc5+ {[%clk 0:00:26.4]} 27. Qxc5 {[%clk 0:00:21.3]}
27... dxc5 {[%clk 0:00:27.3]} 28. Rad1 {[%clk 0:00:16]} 28... Rxd2 {[%clk
0:00:25.9]} 29. Rxd2 {[%clk 0:00:14.5]} 29... Rxe1+ {[%clk 0:00:26.1]} 30. Kf2
{[%clk 0:00:15.4]} 30... Re8 {[%clk 0:00:25.7]} 31. Rd7 {[%clk 0:00:14.3]} 31...
Bxc3 {[%clk 0:00:24.2]} 32. Rxc7 {[%clk 0:00:14.6]} 32... Bd4+ {[%clk
0:00:23.8]} 33. Kf1 {[%clk 0:00:14.5]} 33... g6 {[%clk 0:00:23.4]} 34. Rc6
{[%clk 0:00:12.4]} 34... Re6 {[%clk 0:00:23.3]} 35. Rc8+ {[%clk 0:00:12.2]}
35... Kg7 {[%clk 0:00:23.5]} 36. Rc7 {[%clk 0:00:13.1]} 36... h5 {[%clk
0:00:23.6]} 37. g3 {[%clk 0:00:12.4]} 37... Re3 {[%clk 0:00:23]} 38. f4 {[%clk
0:00:09.9]} 38... Rf3+ {[%clk 0:00:22.8]} 39. Kg2 {[%clk 0:00:10.2]} 39... Rf2+
{[%clk 0:00:22.7]} 40. Kh3 {[%clk 0:00:11.1]} 40... Rxa2 {[%clk 0:00:23.6]} 41.
f5 {[%clk 0:00:07.6]} 41... g5 {[%clk 0:00:22.2]} 42. g4 {[%clk 0:00:07.4]}
42... Be5 {[%clk 0:00:21.4]} 43. gxh5 {[%clk 0:00:06.2]} 43... Bxc7 {[%clk
0:00:20.7]} 0-1